Cogmind - Beta 13 @@@ ROGUE MODE // 2024.04.03 @ 13:52:03 Player: XELQUA Result: Self-destructed Performance ------------- Evolutions (2) 1000 Regions Visited (3) 600 Robots Destroyed (30) 150 Value Destroyed (872) 872 Prototype IDs (0) 0 Alien Tech Used (0) 0 Bonus (0) 0 TOTAL SCORE: 2622 Bonus ------- None Cogmind --------- Core Integrity 351/550 Matter 175/300 Energy 100/100 System Corruption 0% Temperature Warning (380) Movement Core (950) Ox18 Location -8/Materials Parts ------- > --- POWER (1) -------- (None) > --- PROPULSION (4) --- (None) > --- UTILITY (3) ------ Cooling System High-capacity Storage Unit Medium Armor Plating > --- WEAPON (3) ------- Ion Cannon > --- INVENTORY (20) --- Ion Engine Reinforced Ion Engine Light Nuclear Core Medium Storage Unit Medium Matter Pod (8) Weight Redist. System Improved Salvage Targeting Computer Hacking Suite Recalibrator Light Assault Rifle Peak State ------------ > --- POWER ------------ Light Nuclear Core > --- PROPULSION ------- Light Treads Carbon-fiber Leg Carbon-fiber Leg > --- UTILITY ---------- Medium Storage Unit High-capacity Storage Unit Medium Armor Plating > --- WEAPON ----------- Beam Cannon Ion Cannon Ion Cannon > --- INVENTORY -------- Ion Engine Reinforced Ion Engine Light Nuclear Core Cooling System Medium Matter Pod Weight Redist. System Improved Salvage Targeting Computer Medium Armor Plating Hacking Suite Recalibrator Light Assault Rifle [Rating: 23] Favorites ----------- Power Light Ion Engine Engine Light Ion Engine Power Core Light Nuclear Core Propulsion Aluminum Leg Treads Light Treads Leg Aluminum Leg Flight Unit Flight Unit Utility High-capacity Storage Unit Device Heat Sink Storage High-capacity Storage Unit Processor Transport Network Coupler Protection Medium Armor Plating Weapon Light Assault Rifle Energy Gun Medium Laser Energy Cannon Ion Cannon Ballistic Gun Light Assault Rifle Build | -11 -10 -9 -8 ------- Run | Yrd Mat Mat Mat Slots Evolved 4 | . . 2 2 Power . | . . . . Propulsion 2 | . . 2 . Utility 1 | . . . 1 Weapon 1 | . . . 1 Parts Attached 47 | 4 12 18 13 Power 5 | 1 1 1 2 Engine 4 | 1 1 1 1 Core 1 | . . . 1 Reactor . | . . . . Propulsion 19 | . 4 13 2 Treads 6 | . 2 4 . Leg 9 | . 2 5 2 Wheel . | . . . . Hover . | . . . . Flight 4 | . . 4 . Utility 10 | 1 3 2 4 Device 3 | . 2 . 1 Storage 4 | 1 1 2 . Processor 1 | . . . 1 Hackware . | . . . . Protection 2 | . . . 2 Artifact . | . . . . Weapon 13 | 2 4 2 5 Energy Gun 6 | 2 3 1 . Energy Cannon 3 | . . . 3 Ballistic Gun 4 | . 1 1 2 Ballistic Cannon . | . . . . Launcher . | . . . . Special Weapon . | . . . . Impact Weapon . | . . . . Slashing Weapon . | . . . . Piercing Weapon . | . . . . Special Melee Weapon . | . . . . Unidentified Prototypes . | . . . . Parts Lost 26 | . 3 7 16 Power 5 | . 1 1 3 Propulsion 12 | . 1 5 6 Utility 2 | . 1 . 1 Weapon 7 | . . 1 6 Highest Loss Streak 15 | . 2 7 15 To Critical Strikes . | . . . . Average Slot Usage (%) 94 | . 88 97 94 Engine 11 | . 12 10 6 Treads 8 | . 12 3 23 Leg 19 | . 15 23 9 Flight 8 | . . 14 . Device 4 | . 4 4 . Storage 16 | . 14 17 17 Energy Gun 11 | . 23 6 6 Ballistic Gun 12 | . 4 15 15 Naked Turns . | . . . . Heaviest Build 66 | 12 17 59 66 Greatest Support 60 | 3 40 60 60 Greatest Overweight (x) 14 | 3 . 14 4 Average Overweight (x) . | 1 . 1 1 Largest Inventory Capacity 20 | 8 10 20 20 Average Capacity 15 | 7 8 19 20 Most Carried 20 | 6 10 20 20 Average Carried 11 | 4 6 12 16 Final Capacity 20 | 8 10 20 20 Final Carried 19 | 6 10 19 10 Class Distribution -------------------- 63% | Mutant 28% | Scavenger-Mutant 8% | Scavenger-Skirmisher Dominant Class ---------------- Mutant | -10/Materials Scavenger-Mutant | -9/Materials Scavenger-Skirmisher | -8/Materials Resources | -11 -10 -9 -8 ----------- Run | Yrd Mat Mat Mat Matter Collected 773 | 238 99 270 166 Remotely . | . . . . Salvage Created 1113 | . 404 408 301 Parts 62 | . 23 28 11 Haulers Intercepted 2 | . 1 1 . Recyclers Shooed . | . . . . Parts Field Recycled . | . . . . Retrieved Matter . | . . . . Parts Self-Destructed . | . . . . Prevented . | . . . . Kills | -11 -10 -9 -8 ------- Run | Yrd Mat Mat Mat Combat Hostiles Destroyed 25 | . 9 10 6 Guns 23 | . 8 10 5 Cannons 1 | . . . 1 Classes Destroyed 8 | . 5 2 1 Builder 1 | . 1 . . Hauler 2 | . 1 1 . Operator 2 | . 2 . . Swarmer 6 | . 2 4 . Grunt 15 | . 7 3 5 Brawler 1 | . . . 1 Duelist 1 | . . 1 . Sentry 2 | . . 2 . Best Kill Streak 4 | . 3 4 3 Combat Bots Only 4 | . 3 4 3 Max Kills in Single Turn 2 | . 2 1 1 Gunslinging 1 | . 1 . . Exploded . | . . . . Melee . | . . . . Uniques/NPCs Destroyed . | . . . . Combat | -11 -10 -9 -8 -------- Run | Yrd Mat Mat Mat Hostile Shots Fired 281 | . 69 66 146 Missed 58 | . 15 16 27 Damage Taken 3383 | . 664 709 2010 Core 353 | . 87 67 199 Absorbed by Shields . | . . . . Core Remaining (%) 82 | 100 65 83 . Volleys Fired 113 | . 44 44 25 Largest 3 | . 2 2 3 Hottest 180 | . 100 70 180 Shots Fired 238 | . 90 87 61 Gun 228 | . 90 87 51 Cannon 10 | . . . 10 Launcher . | . . . . Special . | . . . . Kinetic 119 | . 15 61 43 Thermal 110 | . 75 25 10 Explosive . | . . . . Electromagnetic 9 | . . 1 8 Robot Hit Streak 16 | . 16 8 6 Robot Miss Streak 5 | . 2 3 5 Penetration Max . | . . . . Secondary Targets 4 | . 2 1 1 Max Gunslinging Chain 1 | . 1 1 1 Shots Hit Robots 153 | . 61 53 39 Core Hits 66 | . 24 22 20 Critical Kills . | . . . . Critical Parts Destroyed 1 | . . 1 . Critical Strikes 3 | . 2 1 . Burn 2 | . 2 . . Destroy 1 | . . 1 . Melee Attacks . | . . . . Impact . | . . . . Slashing . | . . . . Piercing . | . . . . Sneak Attacks . | . . . . Combat Hostiles . | . . . . Follow-up Attacks . | . . . . Damage Inflicted 2128 | . 676 627 825 Guns 1819 | . 676 623 520 Cannons 210 | . . . 210 Explosions 93 | . . . 93 Melee . | . . . . Ramming 6 | . . 4 2 Kinetic 900 | . 65 396 439 Thermal 1125 | . 611 211 303 Explosive . | . . . . Electromagnetic 97 | . . 16 81 Impact . | . . . . Slashing . | . . . . Piercing . | . . . . Highest Corruption 2 | . 2 1 . Average Corruption 1 | . 2 1 . Corruption Purged . | . . . . Corruption Blocked . | . . . . Effects 13 | . 10 3 . Message Errors 2 | . 2 . . Matter Fused 2 | . 1 1 . Data Loss (minor) 5 | . 4 1 . Data Loss (major) 2 | . 1 1 . Misfires 2 | . 2 . . Overload Shots . | . . . . Overflow Damage 14 | . . . 14 Projectiles . | . . . . Explosions 14 | . . . 14 Melee . | . . . . Knockbacks . | . . . . Impact . | . . . . Kinetic . | . . . . Secondary . | . . . . Self-Inflicted Damage 52 | . . 1 51 Shots 1 | . . . 1 Rammed 2 | . . 1 1 Targets Rammed 4 | . 1 2 1 Kicked 2 | . 1 1 . Crushed . | . . . . Highest Temperature 573 | . 545 108 573 Average Temperature 148 | . 176 23 213 Received Heat Transfer 1662 | . 345 174 1143 Effects 13 | . 7 . 6 Shutdowns 4 | . 3 . 1 Energy Bleed 3 | . 2 . 1 Interference 1 | . . . 1 Matter Decay 1 | . . . 1 Short Circuit 3 | . 1 . 2 Damage (major) 1 | . 1 . . Siege Activations . | . . . . Robots Corrupted . | . . . . Combat Hostiles . | . . . . Parts Fried . | . . . . Impact Corruptions . | . . . . Robots Melted 1 | . 1 . . Combat Hostiles 1 | . 1 . . Parts Melted 5 | . 3 2 . Heat Transferred 2886 | . 1737 629 520 Parts Sabotaged . | . . . . Parts Stolen . | . . . . Parts Stripped . | . . . . Power Chain Reactions 1 | . . . 1 Alert | -11 -10 -9 -8 ------- Run | Yrd Mat Mat Mat Peak Influence 196 | . 137 196 116 Initial 57 | . . 57 9 Average 63 | . 74 60 59 Maximum Alert Level . | . . . . Low Security (%) 100 | 100 100 100 100 Level 1 . | . . . . Level 2 . | . . . . Level 3 . | . . . . Level 4 . | . . . . Level 5 . | . . . . High Security . | . . . . Max Security . | . . . . Squads Dispatched 5 | . 2 1 2 Investigation 1 | . . . 1 Extermination . | . . . . Reinforcement 4 | . 2 1 1 Assault . | . . . . Garrison . | . . . . Intercept . | . . . . Searches Triggered . | . . . . Construction Impeded . | . . . . Haulers Reinforced . | . . . . Active Scanning Responses . | . . . . Cargo Convoy Interrupts . | . . . . Stealth | -11 -10 -9 -8 --------- Run | Yrd Mat Mat Mat Distress Signals . | . . . . Communications Jammed . | . . . . Distress Signals . | . . . . Times Spotted 46 | . 14 18 14 Peak Tracking Total 7 | . 4 4 7 Tactical Retreats 1 | . . . 1 Traps | -11 -10 -9 -8 ------- Run | Yrd Mat Mat Mat Traps Triggered 1 | . 1 . . Indirectly . | . . . . Trap Hack Attempts . | . . . . Triggered . | . . . . Disarmed . | . . . . Reprogrammed . | . . . . Reused . | . . . . Traps Extracted . | . . . . Installed . | . . . . Triggered . | . . . . Machines | -11 -10 -9 -8 ---------- Run | Yrd Mat Mat Mat Machines Disabled 1 | . . . 1 Max in Single Turn 1 | . . . 1 Machines Repaired . | . . . . Machines Dismantled . | . . . . Machines Sabotaged . | . . . . Overloaded Fab Kills . | . . . . Hacking | -11 -10 -9 -8 --------- Run | Yrd Mat Mat Mat Machines Accessed 8 | . . 5 3 Terminals 7 | . . 4 3 Fabricators . | . . . . Repair Stations . | . . . . Recycling Units . | . . . . Scanalyzers 1 | . . 1 . Garrison Access . | . . . . Total Hacks 26 | . . 12 14 Successful 14 | . . 6 8 Failed 12 | . . 6 6 Catastrophic 4 | . . 2 2 Database Lockouts . | . . . . Manual 6 | . . 4 2 Terminals 24 | . . 10 14 Fabricators . | . . . . Repair Stations . | . . . . Recycling Units . | . . . . Scanalyzers 2 | . . 2 . Garrison Access . | . . . . Terminal Hacks 12 | . . 4 8 Record 9 | . . 3 6 Locate Traps 1 | . . . 1 Hauler Manifests 1 | . . . 1 Zone Layout 1 | . . 1 . Fabricator Hacks . | . . . . Repair Station Hacks . | . . . . Recycling Unit Hacks . | . . . . Scanalyzer 2 | . . 2 . Insert Component 1 | . . 1 . Analyze 1 | . . 1 . Garrison Access Hacks . | . . . . Unauthorized Hacks . | . . . . Terminals . | . . . . Fabricators . | . . . . Repair Stations . | . . . . Recycling Units . | . . . . Scanalyzers . | . . . . Garrison Access . | . . . . Data Cores Recovered . | . . . . Used . | . . . . Hacking Detections 7 | . . 4 3 Full Trace Events 1 | . . . 1 Feedback Events . | . . . . Feedback Blocked . | . . . . Robot Schematics Acquired . | . . . . Robots Built . | . . . . Authchips . | . . . . Time . | . . . . Total Robot Build Rating . | . . . . Part Schematics Acquired 1 | . . 1 . Parts Built . | . . . . Authchips . | . . . . Time . | . . . . Total Part Build Rating . | . . . . Parts Repaired . | . . . . Time . | . . . . Parts Recycled . | . . . . Recycled Matter . | . . . . Retrieved Matter . | . . . . Retrieved Components . | . . . . Parts Scanalyzed 1 | . . 1 . Part Schematics Acquired 1 | . . 1 . Parts Damaged . | . . . . Bothacking | -11 -10 -9 -8 ------------ Run | Yrd Mat Mat Mat Used RIF Installer . | . . . . Robots Hacked . | . . . . Non-combat . | . . . . Combat . | . . . . Robot Hacks Applied . | . . . . Relay Couplers Released . | . . . . Fabnet Peak Effective % . | . . . . Robots Rewired . | . . . . Allies Hacked . | . . . . Hacks Repelled . | . . . . Allies | -11 -10 -9 -8 -------- Run | Yrd Mat Mat Mat Total Allies . | . . . . Largest Group . | . . . . Highest-Rated Group . | . . . . Highest-Rated Ally . | . . . . Total Orders . | . . . . Ally Attacks . | . . . . Total Damage . | . . . . Kills . | . . . . Allies Corrupted . | . . . . Allies Melted . | . . . . Intel | -11 -10 -9 -8 ------- Run | Yrd Mat Mat Mat Robot Analysis Total . | . . . . Derelict Logs Recovered . | . . . . Drone Launches . | . . . . Drone Recoveries . | . . . . Exploration | -11 -10 -9 -8 ------------- Run | Yrd Mat Mat Mat Turns Passed 2500 | 67 786 1391 256 Spaces Moved 1040 | 38 384 558 60 Core 38 | 38 . . . Treads 224 | . 86 84 54 Legs 625 | . 298 321 6 Wheels . | . . . . Hover . | . . . . Flight 153 | . . 153 . Fastest Speed 50 | 50 120 160 240 Average Speed 182 | 144 128 214 256 Slowest Speed 1160 | 200 160 1160 400 Overloaded Moves . | . . . . Propulsion Burnouts . | . . . . Robots Hopped . | . . . . Cave-ins Triggered . | . . . . Exploration Rate (%) 24 | 4 46 40 7 Regions Visited 3 Branch Regions . Pre-discovered Areas . | . . . . Known Exits Taken . | . . . . Unknown Exits Taken 3 | 1 1 1 . Scrap Searched . | . . . . Spaces Dug . | . . . . Terrain Destroyed 4 | . . . 4 Melee . | . . . . Projectile . | . . . . AOE 4 | . . . 4 Terrain Rammed . | . . . . Walls Destroyed . | . . . . Machines Disabled . | . . . . Actions | -11 -10 -9 -8 --------- Run | Yrd Mat Mat Mat Total 1430 | 51 590 672 117 Wait 152 | . 128 17 7 Move 1037 | 37 383 557 60 Hop . | . . . . Pick Up 59 | 10 16 26 7 Fast Attach . | . . . . Attach 30 | 4 6 9 11 Detach . | . . . . Swap 17 | . 6 9 2 Drop 18 | . 6 8 4 Fire 113 | . 44 44 25 Melee . | . . . . Ram 1 | . . 1 . Kick 2 | . 1 1 . Crush 1 | . . . 1 Escape Stasis . | . . . . Rewire . | . . . . Trap . | . . . . Miscellaneous . | . . . . Route ------- -11/Scrapyard -10/Materials -9/Materials (discovered 2 exits: *Mat / [*Min]) -8/Materials History --------- Turn | Location | Event 12 | -11/Scrapyard | Discovered new exit (range 15) 68 | -11/Scrapyard | Entered Materials 317 | -10/Materials | Build established: Mutant 848 | -10/Materials | Discovered new exit (range 4) 854 | -10/Materials | Entered another Materials area 854 | -9/Materials | Evolved 2 slots: Propulsion x2 915 | -9/Materials | Discovered new exit (range 13) 1608 | -9/Materials | Lost 7 parts (1p5n1w) 1857 | -9/Materials | Build established: Scavenger-Mutant 2238 | -9/Materials | Discovered new exit (range 3) 2245 | -9/Materials | Entered another Materials area 2245 | -8/Materials | Evolved 2 slots: Utility x1, Weapon x1 2501 | -8/Materials | Self-destructed Last Messages --------------- 02480_ R-06 Scavenger collects Imp. Heat Sink. 02480_ Lgt. Treads destroyed. 02482_ Beam Cannon destroyed. 02483_ R-06 Scavenger collects Particle Gun. 02487_ Overheating: Matter decay (-34). 02487_ R-06 Scavenger collects Lgt. Nuclear Core. 02489_ Overheating: System interference. 02489_ Cooling System temporarily disabled. 02490_ M-13 Machinist repairs Welding Torch. 02492_ Power failure, Lgt. Nuclear Core shutdown. 02492_ Carbon-fiber Leg destroyed. 02493_ Ion Cannon destroyed. 02495_ Med. Armor Plating destroyed. 02496_ M-13 Machinist repairs G-50 Soldier. 02497_ Lgt. Nuclear Core destroyed. 02498_ Terminal disabled. 02500_ Broken Carbon-fiber Leg destroyed. 02500_ M-13 Machinist repairs Aluminum Leg. Map ----- +----------------------------------------------------+ | ????????????????????????????????? | | ????????????????????????????????? | | ????????????????????????????????? | | ????????????????????????????????? | | ????????????????????????????????? | | ????????????????????????????????? | | ?????????????# ?????????????????? | | ?????????????? ?????????????????? | | ??????????????? ##########??????? | | ??????????????? # #??????? | | ????????????????/ [ #??????? | | ????????????????# #??????? | | ????????????????# #??????? | | ????????????????# /// #??????? | | ????????????????# /// #??????? | | ????????????????# // #??????? | | ?????^^^????????? #??????? | | ?????^^^??????????? ????????? | | ????????????????????#+#?????????? | | ????????????????????# #?????????? | | ????# ??????????#####[##????????? | | ????# ?????????#"""# ###???????? | | ????# #########"T"#%# ###?????? | | ????# %%g% #?????? | | ????# u g mg !#?????? | | ????# / g @###???? | | ?????#######u g / "#???? | | ???????????# / * T"#???? | | ???????????# ""#???? | | ???????##### ###???? | | ???????#!! #?????? | | ???????#! #?????? | | ???????#!] #?????? | | ???????#!! ######?????? | | ???????#!! #??????????? | | ???????#!! r #??????????? | | ???????##### u #??????????? | | ???????????# #?????????? | | ???????????# +?????????? | | ???????????# #?????????? | | ???????????# ###### #?????????? | | ???????????# #????? #?????????? | | ???????????# #?????+#?????????? | | ???????????# #????????????????? | | ??????????? #????????????????? | | ?????????? #????????????????? | | ????????? #????????????????? | | ?????????? ####????????????????? | | ??????????? ????????????????????? | | ????????????????????????????????? | +----------------------------------------------------+ Best States ------------- Heat Dissipation 38 Energy Generation 14 Energy Capacity 160 Matter Stores 300 Matter Capacity 300 Sight Range 16 Terrain Scan Range 14 Terrain Scan Density 10 Armor Coverage 225 Evasion (%) 55 Recoil Reduction 3 Item Schematics ----------------- Imp. Aluminum Leg | -9/Materials | Scanalyzed Robot Schematics ------------------ None Fabricated ------------ Nothing Alien Tech Used ----------------- None Achievements -------------- None Challenges ------------ None Game ------ Seed GuidedDeepBlade Manual? 0 Play Time 00:39:33 Cumulative 7.6 hours Start 2024.04.03 @ 13:14:51 End 2024.04.03 @ 13:52:03 Sessions 1 Manual Loads 0 Difficulty Rogue Special Mode None Game No. 10 Rogue 10 Adventurer 0 Explorer 0 Win Type - Total 0 Types 0/0/0/0/0/0/0/0/0 Lore% 6 Gallery% 12 Achievement% 10 Wizard Run 0 Options --------- Layout 1 ASCII 0 Keyboard 0 Movement Arrows Keybinds 0 Fullscreen 1 Font 48/Smallcaps Map View 50x35 Zoom Use 0% Tactical HUD 1 Map Filters NONE Filters NONE Steam 1 RUN: 227d32c2-0b70-4165-9e6f-89fe49434399